bitfinex/quotes_BTCUSD_20260310
["timestamp","ask_amount","ask_price","bid_price","bid_amount"]
[1773140401333,0.03,70826.0,70812.0,0.07060769]
[1773140401566,0.25721973,70817.0,70806.0,0.0706095]
[1773140401767,0.03,70816.0,70807.0,0.00022]
[1773140402093,0.03,70816.0,70808.0,0.07061349]
[1773140402512,0.03,70814.0,70812.0,0.001]
[1773140402713,0.03,70814.0,70807.0,0.07083435]
[1773140403131,0.03,70814.0,70807.0,0.07227435]
[1773140405690,0.03,70815.0,70807.0,0.07227435]
[1773140406851,0.03,70814.0,70807.0,0.33098549]
[1773140407074,0.03,70814.0,70807.0,0.33120549]
[1773140407751,0.03,70817.0,70807.0,0.33120549]
[1773140408148,0.03,70817.0,70807.0,0.33098549]
[1773140408789,0.03,70815.0,70807.0,0.07205435]
[1773140408974,0.0002,70814.0,70808.0,0.00022]
[1773140411566,0.0302,70814.0,70809.0,0.07061249]
[1773140412197,0.0302,70814.0,70810.0,0.25893114]
[1773140412572,0.03,70813.0,70810.0,0.25893114]
[1773140412978,0.0002,70814.0,70810.0,0.25893114]
[1773140413178,0.0002,70814.0,70809.0,0.07061249]
[1773140413586,0.03,70815.0,70808.0,0.07061251]
[1773140413799,0.03,70815.0,70809.0,0.00022]
[1773140414680,0.03,70814.0,70809.0,0.25915114]
[1773140415093,0.07204204,70820.0,70809.0,0.25915114]
[1773140415292,0.07060204,70820.0,70809.0,0.28312191]
[1773140415696,0.10060306,70819.0,70810.0,0.07061149]
[1773140416129,0.10060306,70819.0,70809.0,0.3537334]
[1773140416130,0.10060306,70819.0,70809.0,0.07083149]
[1773140416360,0.03,70817.0,70810.0,0.00144]
[1773140416566,0.03,70817.0,70807.0,0.07061369]
[1773140416726,0.05376435,70813.0,70806.0,0.07083505]
[1773140417106,0.05376435,70813.0,70806.0,0.07227505]
[1773140417958,0.05376435,70813.0,70806.0,0.07083505]
[1773140417959,0.12437318,70813.0,70806.0,0.07083505]
[1773140418205,0.12437318,70813.0,70806.0,0.07227505]
[1773140418608,0.12437318,70813.0,70806.0,0.07083505]
[1773140418819,0.12537318,70813.0,70806.0,0.07227505]
[1773140419037,0.12537318,70813.0,70806.0,0.07083505]
[1773140419254,0.12437318,70813.0,70806.0,0.07227505]
[1773140419464,0.03,70811.0,70803.0,0.00166]
[1773140419672,0.05376435,70811.0,70803.0,0.00166]
[1773140420134,0.03,70809.0,70803.0,0.00166]
[1773140420520,0.03,70809.0,70803.0,0.07227843]
[1773140420724,0.03,70809.0,70804.0,0.25893114]
[1773140421142,0.03,70808.0,70804.0,0.25893114]
[1773140421821,0.03,70808.0,70803.0,0.00166]
[1773140422031,0.03,70807.0,70803.0,0.00166]
[1773140423236,0.03,70808.0,70803.0,0.26059114]
[1773140423859,0.07061343,70809.0,70803.0,0.33120946]
[1773140424165,0.07080784,70814.0,70804.0,0.25893114]
[1773140424314,0.07080784,70814.0,70806.0,0.25893114]
[1773140424663,0.07080784,70814.0,70806.0,0.25848523]
[1773140425048,0.07080784,70814.0,70806.0,0.25833658]
[1773140425621,0.02376435,70813.0,70803.0,0.00166]
[1773140425893,0.07080784,70814.0,70803.0,0.00166]
[1773140425894,0.03,70811.0,70803.0,0.00166]
[1773140426112,0.03,70809.0,70803.0,0.00166]
[1773140427317,0.03,70809.0,70803.0,0.00022]
[1773140427550,0.03,70809.0,70801.0,0.00033393]
[1773140427551,0.03,70808.0,70798.0,0.07084308]
[1773140427711,0.03,70806.0,70798.0,0.07228297]
[1773140428478,0.05376435,70806.0,70798.0,0.00166]
[1773140428704,0.05376435,70806.0,70798.0,0.072283]
[1773140428900,0.05376435,70806.0,70798.0,0.070843]
[1773140429780,0.03,70804.0,70798.0,0.07039718]
[1773140430650,0.03,70804.0,70798.0,0.070623]
[1773140431024,0.03,70804.0,70798.0,0.070843]
[1773140432145,4.283e-05,70808.0,70799.0,0.25893114]
[1773140432146,0.0706569,70808.0,70799.0,0.25893114]
[1773140432541,0.0706569,70808.0,70799.0,0.25878251]
[1773140432927,0.0706569,70808.0,70799.0,0.25863389]
[1773140433351,0.03,70807.0,70799.0,0.25863389]
[1773140433608,0.0706569,70808.0,70799.0,0.25863389]
[1773140433752,0.0706569,70808.0,70794.0,0.07084669]
[1773140433753,0.05323724,70804.0,70791.0,0.00166]
[1773140433946,0.02376435,70803.0,70791.0,0.07229039]
[1773140434263,0.03,70802.0,70792.0,0.27704198]
[1773140434917,0.00144,70805.0,70792.0,0.27704198]
[1773140436372,0.03,70803.0,70792.0,0.27689337]
[1773140436575,0.03,70801.0,70790.0,0.00022]
[1773140436797,0.30995081,70797.0,70788.0,0.00022]
[1773140438477,0.03,70795.0,70786.0,0.05602041]
[1773140438783,0.07062545,70796.0,70786.0,0.05602041]
[1773140439570,0.07071665,70796.0,70786.0,0.05602041]
[1773140439780,0.07071665,70796.0,70783.0,0.27848198]
[1773140439781,0.27973868,70795.0,70783.0,0.27848198]
[1773140439975,0.27942016,70795.0,70783.0,0.34912028]
[1773140440164,0.27942016,70795.0,70783.0,0.34768028]
[1773140440365,0.27942016,70795.0,70784.0,0.00144]
[1773140440565,0.03,70793.0,70784.0,0.00144]
[1773140441078,0.03,70793.0,70783.0,0.34768028]
[1773140441246,0.03,70793.0,70784.0,0.00144]
[1773140441657,0.07062745,70794.0,70784.0,0.00144]
[1773140441658,0.07039618,70794.0,70784.0,0.00144]
[1773140442518,0.07039618,70794.0,70783.0,0.34768018]
[1773140442757,0.07039618,70794.0,70784.0,0.00144]
[1773140443665,0.07062446,70797.0,70785.0,0.02571225]
[1773140443814,0.07062446,70797.0,70789.0,0.02571225]
[1773140444011,0.07062446,70797.0,70790.0,0.30253423]
[1773140444835,0.001611,70802.0,70790.0,0.27682198]
[1773140445034,0.03,70799.0,70787.0,0.00144]
[1773140445188,0.28618646,70797.0,70787.0,0.00144]
[1773140445387,0.28618646,70797.0,70784.0,0.09656927]
[1773140445588,0.28618646,70797.0,70785.0,0.00144]
[1773140447345,0.03,70795.0,70785.0,0.00144]
[1773140448144,0.03,70795.0,70785.0,0.0720759]
[1773140448297,0.03,70795.0,70785.0,0.33867558]
[1773140449160,0.03,70795.0,70785.0,0.26803968]
[1773140449938,0.03,70793.0,70785.0,0.26803968]
[1773140450364,0.03,70793.0,70785.0,0.26659968]
[1773140451180,0.03,70793.0,70785.0,0.33723605]
[1773140451900,0.03,70793.0,70785.0,0.26659968]
[1773140452484,0.03,70791.0,70785.0,0.26659968]
[1773140452999,0.03,70791.0,70785.0,0.26681968]
[1773140453693,0.07062944,70792.0,70785.0,0.26681968]
[1773140454698,0.07062745,70794.0,70785.0,0.00022]
[1773140454699,0.03,70794.0,70785.0,0.00022]
[1773140454916,0.30784775,70794.0,70785.0,1e-08]
[1773140455104,0.03,70792.0,70785.0,1e-08]
[1773140456982,0.03,70792.0,70780.0,0.07086112]
[1773140456983,0.30784775,70790.0,70780.0,0.00022]
[1773140457183,0.30784775,70790.0,70778.0,0.0010579]
[1773140457184,0.3875133,70790.0,70778.0,0.0010579]
[1773140458172,0.3875133,70790.0,70773.0,0.00022]
[1773140458173,0.03,70787.0,70773.0,0.00022]
[1773140458345,0.33427606,70785.0,70773.0,0.00022]
[1773140459066,0.03,70783.0,70773.0,0.00022]
[1773140459266,0.08323724,70783.0,70773.0,0.00022]
[1773140459467,0.08323724,70783.0,70773.0,0.00059916]
[1773140459674,0.03,70783.0,70773.0,0.00059916]
[1773140460254,0.07063206,70790.0,70775.0,0.26659968]
[1773140460454,0.07063206,70790.0,70780.0,0.26659968]
[1773140460860,0.27784775,70787.0,70777.0,0.00022]
[1773140461066,0.02642831,70784.0,70773.0,0.00203916]
[1773140461260,0.3575133,70783.0,70773.0,0.00059916]
[1773140461462,0.3575133,70783.0,70759.0,0.02425088]
[1773140461463,0.02642831,70781.0,70759.0,0.02425088]
[1773140461854,0.02642831,70771.0,70759.0,0.000171]
[1773140462054,0.02642831,70771.0,70757.0,0.00144]
[1773140462055,0.27784775,70768.0,70757.0,0.00144]
[1773140462256,0.27784775,70768.0,70755.0,0.26659968]
[1773140462257,0.30571606,70768.0,70755.0,0.26659968]
[1773140462388,0.27784775,70766.0,70753.0,0.07210818]
[1773140462785,0.30427606,70766.0,70751.0,0.33727001]
[1773140462986,0.30427606,70766.0,70752.0,0.00144]
[1773140463155,0.07065639,70765.0,70752.0,0.00144]
[1773140463303,0.07065639,70765.0,70753.0,0.26659968]
[1773140465499,0.36172913,70765.0,70753.0,0.26659968]
[1773140465858,0.07065639,70765.0,70751.0,0.07067037]
[1773140466160,0.07209639,70765.0,70753.0,0.28910945]
[1773140466749,0.07209639,70765.0,70753.0,0.28932945]
[1773140466977,0.07309639,70765.0,70753.0,0.28932945]
[1773140467171,0.07309639,70765.0,70754.0,0.07066738]
[1773140467402,0.07309639,70765.0,70754.0,0.26502957]
[1773140467616,0.07409639,70765.0,70754.0,0.26502957]
[1773140467828,0.07102056,70781.0,70754.0,0.26502957]
[1773140468028,0.07064142,70780.0,70762.0,0.02407988]
[1773140468240,0.07064142,70780.0,70765.0,0.26502957]
[1773140468377,0.07064142,70780.0,70767.0,0.26502957]
[1773140468582,0.12387866,70780.0,70767.0,0.26502957]
[1773140469008,0.00144,70779.0,70767.0,0.26502957]
[1773140469211,0.07064342,70778.0,70767.0,0.26502957]
[1773140469414,0.07064342,70778.0,70767.0,0.33568364]
[1773140469618,0.0347955,70785.0,70767.0,0.33568364]
[1773140469619,0.00144,70787.0,70769.0,0.26502957]
[1773140469813,0.07207324,70789.0,70773.0,0.0245893]
[1773140470013,0.00144,70788.0,70778.0,0.0245893]
[1773140470243,0.07063324,70789.0,70779.0,0.28961887]
[1773140470442,0.03,70788.0,70779.0,0.28961887]
[1773140471325,0.03,70786.0,70779.0,0.28961887]
[1773140471745,0.03,70786.0,70780.0,0.07064142]
[1773140471954,0.07063363,70788.0,70780.0,0.28961887]
[1773140472230,0.00144,70790.0,70780.0,0.28961887]
[1773140472376,0.03,70789.0,70780.0,0.28961887]
[1773140473508,0.03,70795.0,70785.0,0.26502957]
[1773140473716,0.07768578,70796.0,70787.0,0.26502957]
[1773140474243,0.07624596,70796.0,70787.0,0.26502957]
[1773140474991,0.0302,70808.0,70787.0,0.26502957]
[1773140475231,0.29464443,70806.0,70790.0,0.0245893]
[1773140475444,0.29464443,70806.0,70793.0,0.26502957]
[1773140475445,0.03,70804.0,70793.0,0.26502957]
[1773140475599,0.03,70804.0,70794.0,0.0245893]
[1773140476699,0.03,70804.0,70794.0,0.02470325]
[1773140477094,0.03,70804.0,70793.0,0.22286255]
[1773140477297,0.07061847,70803.0,70793.0,0.00010144]
[1773140477542,0.03,70802.0,70793.0,0.00010144]
[1773140477741,0.03,70802.0,70793.0,0.00110144]
[1773140477944,0.03,70802.0,70793.0,0.00010144]
[1773140479370,0.03,70798.0,70783.0,0.28961887]
[1773140479539,0.03011373,70798.0,70784.0,0.29105887]
[1773140479742,0.03011373,70798.0,70785.0,0.26646957]
[1773140480555,0.03011373,70798.0,70786.0,0.00144]
[1773140480961,0.03,70796.0,70786.0,0.00144]
[1773140482526,0.03,70794.0,70786.0,0.00144]
[1773140483084,0.02600299,70791.0,70779.0,1e-08]
[1773140483305,0.07062645,70795.0,70778.0,0.28961887]
[1773140483306,0.03,70790.0,70778.0,0.28961887]
[1773140483523,0.03144,70790.0,70778.0,0.28961887]
[1773140483962,0.03,70790.0,70775.0,0.00163001]
[1773140484164,0.29464443,70784.0,70775.0,0.00019001]
[1773140484879,0.03,70782.0,70775.0,0.00019001]
[1773140487650,0.10064016,70782.0,70775.0,0.00019001]
[1773140488710,0.07063692,70785.0,70775.0,0.00019001]
[1773140488908,0.07226751,70794.0,70779.0,0.26502957]
[1773140489104,0.07226751,70794.0,70777.0,0.33986236]
[1773140489105,0.07226751,70794.0,70783.0,0.26502957]
[1773140489425,0.07082751,70794.0,70785.0,0.26502957]
[1773140489985,0.03,70793.0,70785.0,0.26502957]
[1773140491236,0.03,70791.0,70780.0,0.00144]
[1773140491541,0.03,70791.0,70780.0,0.07208124]
[1773140491736,0.03,70791.0,70780.0,0.07064124]
[1773140491956,0.03,70791.0,70780.0,0.33711081]
[1773140493230,0.03,70789.0,70780.0,0.33811081]
[1773140493434,0.03,70789.0,70780.0,0.33567081]
[1773140493637,0.07063144,70790.0,70780.0,0.26646957]
[1773140493967,0.07063144,70790.0,70780.0,0.33711081]
[1773140494192,0.07063144,70790.0,70785.0,0.00022]
[1773140494418,0.27841475,70789.0,70785.0,0.00022]
[1773140496041,0.07063344,70788.0,70785.0,0.00022]
[1773140496248,0.03,70787.0,70785.0,0.00022]
[1773140498677,0.10063543,70786.0,70785.0,0.00022]
[1773140500472,0.07063467,70787.0,70785.0,0.00022]
[1773140500825,0.03,70792.0,70785.0,0.00022]
[1773140502777,0.03,70790.0,70785.0,0.00022]
[1773140504020,0.03,70790.0,70780.0,0.25542315]
[1773140504239,0.03,70790.0,70777.0,0.00022]
[1773140504240,0.30782794,70790.0,70777.0,0.00166]
[1773140504649,0.30782794,70790.0,70777.0,0.25708315]
[1773140504962,0.03,70788.0,70777.0,0.25708315]
[1773140505293,0.03,70783.0,70775.0,0.00144]
[1773140505497,0.03,70783.0,70771.0,0.32629339]
[1773140505658,0.03,70783.0,70772.0,0.00144]
[1773140505858,0.03,70783.0,70771.0,0.32629329]
[1773140506082,0.03,70783.0,70771.0,0.32773329]
[1773140506283,0.03,70783.0,70772.0,0.25542315]
[1773140506464,0.03,70783.0,70774.0,0.25542315]
[1773140507379,0.03,70781.0,70774.0,0.25542315]
[1773140508563,0.03,70781.0,70771.0,0.00022]
[1773140508766,0.03,70781.0,70767.0,0.25563845]
[1773140508767,0.03,70779.0,70767.0,0.25563845]
[1773140508964,0.28241176,70777.0,70764.0,0.00166]
[1773140509163,0.03,70775.0,70764.0,1e-08]
[1773140509392,0.03,70773.0,70764.0,1e-08]
[1773140509755,0.03,70769.0,70755.0,0.0016553]
[1773140510153,0.03,70769.0,70756.0,0.33542637]
[1773140510402,0.03011367,70769.0,70756.0,0.33542637]
[1773140510845,0.03011367,70769.0,70756.0,0.26476147]
[1773140510989,0.00144,70768.0,70755.0,0.0002153]
[1773140511199,0.03,70766.0,70755.0,0.0002153]
[1773140511377,0.03,70764.0,70755.0,0.0002153]
[1773140511981,0.03,70764.0,70756.0,0.26454147]
[1773140512176,0.07065639,70765.0,70758.0,0.26454147]
[1773140513511,0.07065639,70766.0,70758.0,0.26454147]
[1773140513717,0.03,70765.0,70758.0,0.26454147]
[1773140515029,0.03,70765.0,70758.0,0.26476147]
[1773140515267,0.03,70765.0,70758.0,0.00022]
[1773140515477,0.03,70764.0,70758.0,0.26476147]
[1773140516215,0.07065639,70765.0,70758.0,0.26476147]
[1773140516418,0.03,70764.0,70758.0,0.26476147]
[1773140518696,0.03,70762.0,70758.0,0.26476147]
[1773140518879,0.03,70762.0,70755.0,0.0002153]
[1773140519456,0.03,70762.0,70745.0,0.07067091]
[1773140519658,0.03,70758.0,70742.0,0.02637104]
[1773140519865,0.00144,70757.0,70745.0,0.29091251]
[1773140520067,0.00144,70756.0,70745.0,0.29091251]
[1773140520271,0.03,70758.0,70745.0,0.29091251]
[1773140520472,0.00144,70757.0,70745.0,0.29091251]
[1773140520682,0.03,70755.0,70745.0,0.26454147]
[1773140520917,0.03,70755.0,70741.0,0.00144]
[1773140521253,0.07066538,70756.0,70741.0,0.00144]
[1773140521254,0.2994579,70752.0,70741.0,0.00144]
[1773140521663,0.00144,70754.0,70741.0,0.00144]
[1773140521664,0.00144,70754.0,70743.0,0.02637104]
[1773140521793,0.00144,70754.0,70742.0,0.26454147]
[1773140521794,0.00144,70754.0,70745.0,0.02637104]
[1773140522021,0.00144,70754.0,70746.0,0.29091251]
[1773140522218,0.00144,70754.0,70746.0,0.26454147]
[1773140522709,0.03,70752.0,70746.0,0.26454147]
[1773140522904,0.03,70752.0,70741.0,0.00144]
[1773140523324,0.03,70752.0,70740.0,0.34084189]
[1773140523529,0.03,70752.0,70740.0,0.27160147]
[1773140523940,0.3012381,70752.0,70740.0,0.27160147]
[1773140524144,0.03,70750.0,70740.0,0.00706]
[1773140524383,0.32545719,70750.0,70740.0,0.00706]
[1773140525701,0.32545719,70750.0,70740.0,0.00144]
[1773140525915,0.32545719,70750.0,70650.0,0.00207]
[1773140525916,0.03,70744.0,70730.0,0.07091126]
[1773140526121,0.03,70744.0,70730.0,0.00022]
[1773140526122,0.3012381,70742.0,70730.0,0.00022]
[1773140526325,0.3012381,70738.0,70724.0,0.27464891]
[1773140526567,0.3012381,70736.0,70724.0,0.27464891]
[1773140526777,0.3012381,70736.0,70724.0,0.34534612]
[1773140527152,0.03,70734.0,70724.0,0.34534612]
[1773140527380,0.06264185,70734.0,70724.0,0.27464891]
[1773140528509,0.03,70732.0,70724.0,0.34534616]
[1773140529505,0.03,70732.0,70724.0,0.07213725]
[1773140529740,0.03,70732.0,70725.0,0.27343891]
[1773140530585,0.03,70731.0,70725.0,0.27343891]
[1773140530806,0.03,70731.0,70725.0,0.00023]
[1773140531882,0.03,70728.0,70725.0,0.00023]
[1773140532143,0.06275441,70728.0,70725.0,0.00023]
[1773140532463,0.06275441,70728.0,70721.0,0.0002849]
[1773140532464,0.06275441,70726.0,70721.0,0.0017249]
[1773140532758,0.07069044,70731.0,70722.0,0.27320891]
[1773140533159,0.02528628,70730.0,70722.0,0.27320891]
[1773140533335,0.03,70729.0,70722.0,0.27320891]
[1773140533504,0.02528628,70730.0,70722.0,0.27320891]
[1773140533706,0.02528628,70734.0,70722.0,0.27320891]
[1773140533913,0.07223913,70736.0,70725.0,0.27320891]
[1773140534130,0.00011358,70736.0,70725.0,0.29379559]
[1773140534331,0.03,70735.0,70727.0,0.27320891]
[1773140535098,0.02669995,70734.0,70721.0,0.0002849]
[1773140535370,0.07079912,70736.0,70725.0,0.00022]
[1773140535371,0.03,70727.0,70725.0,0.00022]
[1773140536445,0.07068646,70735.0,70725.0,0.00022]
[1773140536649,0.07068646,70735.0,70725.0,0.27342891]
[1773140536831,0.2712381,70734.0,70721.0,0.0002849]
[1773140537034,0.02669428,70731.0,70721.0,0.0002849]
[1773140537255,0.00144,70733.0,70721.0,0.0002849]
[1773140537256,0.02669428,70730.0,70721.0,0.0002849]
[1773140537443,0.03,70723.0,70717.0,0.00022]
[1773140537644,0.03,70719.0,70708.0,0.0002284]
[1773140537859,0.00144,70726.0,70709.0,0.00144]
[1773140537860,0.03,70715.0,70709.0,0.00144]
[1773140538221,0.03,70715.0,70708.0,0.27343731]
[1773140538390,0.07070017,70722.0,70709.0,0.27320891]
[1773140538595,0.00144,70721.0,70709.0,0.27320891]
[1773140538804,0.02813428,70721.0,70709.0,0.27320891]
[1773140539036,0.03,70720.0,70709.0,0.27320891]
[1773140540398,0.07069735,70724.0,70709.0,0.07071168]
[1773140540610,0.03563531,70734.0,70711.0,0.3365185]
[1773140540811,0.03563531,70732.0,70712.0,0.27320891]
[1773140541185,0.0356838,70729.0,70714.0,0.27320891]
[1773140541521,0.0656838,70728.0,70714.0,0.27320891]
[1773140542146,0.0356838,70734.0,70714.0,0.27320891]
[1773140542434,0.00144,70733.0,70714.0,0.27320891]
[1773140542646,0.03,70731.0,70716.0,0.27320891]
[1773140543059,0.03144,70731.0,70716.0,0.27320891]
[1773140543587,0.03144,70731.0,70716.0,0.26820891]
[1773140543805,0.03,70731.0,70716.0,0.26820891]
[1773140544749,0.03,70729.0,70718.0,0.27320891]
[1773140544934,0.03,70729.0,70720.0,0.27320891]
[1773140546921,0.0706896,70732.0,70722.0,0.27320891]
[1773140547242,0.03560613,70731.0,70722.0,0.27320891]
[1773140548030,0.03,70730.0,70722.0,0.27320891]
[1773140549164,0.03,70729.0,70716.0,0.07070437]
[1773140549372,0.03,70729.0,70719.0,0.27460891]
[1773140553611,0.03556341,70730.0,70720.0,0.3373172]
[1773140554191,0.03556341,70730.0,70720.0,0.07070135]
[1773140554397,0.10625494,70730.0,70721.0,0.26661585]
[1773140554750,0.03601941,70729.0,70720.0,0.07070135]
[1773140556740,0.03621941,70729.0,70720.0,0.07070135]
[1773140556914,0.07064761,70734.0,70722.0,0.01819462]
[1773140557088,0.07208761,70734.0,70723.0,0.26661585]
[1773140557495,0.00144,70733.0,70723.0,0.26661585]
[1773140557696,0.25909528,70731.0,70718.0,0.07070135]
[1773140557904,0.03,70727.0,70719.0,0.00144]
[1773140558493,0.05528628,70727.0,70719.0,0.00144]
[1773140558748,0.03,70725.0,70716.0,0.07070529]
[1773140559276,0.03,70725.0,70716.0,0.07214529]
[1773140559693,0.03,70724.0,70716.0,0.07214529]
[1773140560329,0.03,70724.0,70716.0,0.33876114]
[1773140560535,0.02528628,70727.0,70717.0,0.26661585]
[1773140560860,0.03,70726.0,70718.0,0.07070335]
[1773140561036,0.03,70726.0,70717.0,0.33731999]
[1773140561258,0.03,70726.0,70716.0,0.00144]
[1773140561415,0.03,70722.0,70716.0,0.001]
[1773140561608,0.03,70722.0,70716.0,0.26761585]
[1773140561817,0.03,70722.0,70716.0,0.26661585]
[1773140562056,0.03,70722.0,70717.0,0.001]
[1773140562229,0.00144,70726.0,70717.0,0.001]
[1773140562434,0.03,70717.0,70702.0,0.07071935]
[1773140562648,0.05743883,70717.0,70703.0,0.26661585]
[1773140562847,0.05743883,70717.0,70703.0,0.26805585]
[1773140562848,0.03,70715.0,70703.0,0.26805585]
[1773140563030,0.03,70715.0,70704.0,0.26661585]
[1773140563485,0.03,70715.0,70711.0,0.00022]
[1773140563739,0.05741201,70713.0,70711.0,0.00022]
[1773140563914,0.03,70713.0,70711.0,0.00022]
[1773140564386,0.03,70712.0,70711.0,0.00022]
[1773140564934,0.03011352,70712.0,70711.0,0.00022]
[1773140565137,0.03011352,70712.0,70705.0,0.26661585]
[1773140565387,0.00011352,70712.0,70705.0,0.26661585]
[1773140565802,0.03,70710.0,70704.0,0.07093703]
[1773140565976,0.03,70706.0,70704.0,0.07093705]
[1773140566180,0.03,70706.0,70704.0,0.00022]
[1773140566387,0.03,70706.0,70700.0,0.0097369]
[1773140566587,0.02757921,70701.0,70690.0,0.001]
[1773140566733,0.25909528,70704.0,70692.0,0.00144]
[1773140566734,0.05757921,70698.0,70692.0,0.00144]
[1773140567130,0.03,70696.0,70677.0,0.40726213]
[1773140567356,0.07072412,70698.0,70677.0,0.40726213]
[1773140567357,0.03,70694.0,70685.0,0.33879208]
[1773140567637,0.03,70694.0,70680.0,0.13008272]
[1773140567638,0.03,70692.0,70680.0,0.27261585]
[1773140567844,0.07072412,70698.0,70670.0,0.05434205]
[1773140567845,0.03,70686.0,70673.0,0.0002474]
[1773140568063,0.02758909,70681.0,70670.0,1e-08]
[1773140568276,0.02758909,70681.0,70670.0,0.26661586]
[1773140568693,0.02758909,70681.0,70671.0,0.26661585]
[1773140569054,0.07074136,70680.0,70671.0,0.26661585]
[1773140570112,0.02770253,70681.0,70671.0,0.26661585]
[1773140571289,0.02770253,70681.0,70671.0,0.32780992]
[1773140571489,0.02770253,70681.0,70671.0,0.26794575]
[1773140572010,0.00011344,70681.0,70671.0,0.26794575]
[1773140573046,0.00144,70688.0,70673.0,0.26794575]
[1773140573248,0.03,70687.0,70673.0,0.26832489]
[1773140573626,0.02930001,70688.0,70673.0,0.26841846]
[1773140573963,0.07073189,70690.0,70675.0,0.26794575]
[1773140574168,0.03,70689.0,70677.0,0.26794575]
[1773140574362,0.05786001,70689.0,70677.0,0.26794575]
[1773140574951,0.10642322,70697.0,70676.0,0.00144]
[1773140574952,0.33876671,70699.0,70678.0,0.02551506]
[1773140575153,0.00144,70695.0,70681.0,0.07074036]
[1773140575372,0.03,70696.0,70682.0,0.26938575]
[1773140575566,0.05537555,70694.0,70682.0,0.26938575]
[1773140575983,0.03,70692.0,70682.0,0.26938575]
[1773140576361,0.02537555,70707.0,70685.0,0.26794575]
[1773140576613,0.07072037,70701.0,70689.0,0.26794575]
[1773140576763,0.07072235,70699.0,70682.0,0.26794575]
[1773140576962,0.03,70694.0,70682.0,0.26794575]
[1773140577163,0.00022001,70688.0,70683.0,0.33868403]
[1773140577386,0.00022001,70688.0,70684.0,0.00144]
[1773140578507,0.00022001,70688.0,70684.0,0.07217727]
[1773140578669,0.05537555,70694.0,70685.0,0.26794575]
[1773140578880,0.00562,70936.0,70687.0,0.29192038]
[1773140578881,0.00144,70699.0,70687.0,0.29192038]
[1773140579491,0.00023,70700.0,70687.0,0.29192038]
[1773140580408,0.00023,70700.0,70689.0,0.26794575]
[1773140580895,0.00023,70700.0,70691.0,0.26794575]
[1773140582049,0.03023,70700.0,70691.0,0.26794575]
[1773140582491,0.03023,70700.0,70692.0,0.26794575]
[1773140583037,0.03,70699.0,70692.0,0.26794575]
[1773140584081,0.03,70702.0,70693.0,0.25467775]
[1773140584305,0.0002474,70708.0,70693.0,0.25467775]
[1773140584504,0.02562295,70708.0,70693.0,0.25467775]
[1773140584721,0.00022001,70700.0,70693.0,0.25467775]
[1773140584906,0.00046741,70708.0,70694.0,0.02345793]
[1773140585222,0.03,70711.0,70698.0,0.02345793]
[1773140585471,0.03,70711.0,70701.0,0.25467775]
[1773140585689,0.03,70711.0,70703.0,0.25467775]
[1773140585975,0.00022001,70715.0,70705.0,0.25467775]
[1773140586262,0.03022001,70715.0,70704.0,0.07071735]
[1773140586487,0.03,70713.0,70704.0,0.07071735]
[1773140586960,0.03,70713.0,70705.0,0.00144]
[1773140587583,0.03,70713.0,70705.0,0.25611775]
[1773140587970,0.00033387,70715.0,70706.0,0.25467775]
[1773140589854,0.03033387,70715.0,70707.0,0.07071435]
[1773140590202,0.03033387,70715.0,70708.0,0.25467775]
[1773140590438,0.07069867,70723.0,70707.0,0.07071435]
[1773140590609,0.02540239,70726.0,70711.0,0.25467775]
[1773140590845,0.02540239,70726.0,70713.0,0.25467775]
[1773140591013,0.03023,70725.0,70713.0,0.25467775]
[1773140591644,0.00022001,70715.0,70714.0,0.02283715]
[1773140591832,0.03023,70725.0,70714.0,0.02283715]
[1773140592126,0.00023,70725.0,70717.0,0.25467775]
[1773140592960,0.00022001,70730.0,70717.0,0.25467775]
[1773140593136,0.07068689,70735.0,70717.0,0.25467775]
[1773140593137,0.07068753,70734.0,70717.0,0.27731252]
[1773140593336,0.02540239,70733.0,70717.0,0.27731252]
[1773140593522,0.02116109,70733.0,70717.0,0.02263477]
[1773140593718,0.02260109,70733.0,70718.0,0.25611775]
[1773140594192,0.03,70732.0,70720.0,0.25467775]
[1773140595874,0.03,70732.0,70720.0,0.2802539]
[1773140596165,0.07068688,70735.0,70720.0,0.2802539]
[1773140596166,0.03,70731.0,70722.0,0.25467775]
[1773140596518,0.00144,70735.0,70712.0,0.07070928]
[1773140596519,0.25696744,70733.0,70712.0,0.07070928]
[1773140596722,0.03,70729.0,70713.0,0.07214835]
[1773140596915,0.03,70725.0,70714.0,0.00144]
[1773140597168,0.03,70725.0,70714.0,0.25467775]
[1773140597492,0.03,70725.0,70715.0,0.25611775]
[1773140597689,0.03,70725.0,70715.0,0.25467775]
[1773140597988,0.03,70725.0,70716.0,0.25611775]
[1773140598139,0.03,70725.0,70717.0,0.07070435]
[1773140598338,0.03,70725.0,70718.0,0.00144]
[1773140598838,0.03,70724.0,70718.0,0.00144]
[1773140599240,0.03,70724.0,70719.0,0.00144]
[1773140599866,0.03,70723.0,70719.0,0.00144]
[1773140600102,0.07069339,70728.0,70719.0,0.25611775]
[1773140600326,0.07069172,70730.0,70719.0,0.07214213]
[1773140600523,0.09609411,70730.0,70719.0,0.25611775]
[1773140600685,0.02540239,70729.0,70719.0,0.00144]
[1773140600882,0.03,70728.0,70719.0,0.00144]
[1773140601087,0.03,70726.0,70719.0,0.00144]
[1773140601473,0.03,70726.0,70718.0,0.07070281]
[1773140601685,0.03,70726.0,70719.0,0.00144]
[1773140602287,0.03,70723.0,70702.0,0.07071931]
[1773140602613,0.05540239,70715.0,70707.0,0.00033914]
[1773140603797,0.03,70714.0,70707.0,0.00033914]
[1773140604012,0.05540239,70714.0,70707.0,0.00033914]
[1773140604485,0.03,70712.0,70707.0,0.00033914]
[1773140604637,0.03,70710.0,70707.0,0.00033914]
[1773140604842,0.03,70708.0,70700.0,0.00023]
[1773140605149,0.03,70706.0,70700.0,0.00167]
[1773140606240,0.00037937,70708.0,70700.0,0.00167]
[1773140606823,0.03037937,70708.0,70700.0,0.07239121]
[1773140607037,0.00144,70724.0,70703.0,0.25467775]
[1773140607358,0.02684239,70723.0,70707.0,0.25467775]
[1773140607583,0.02540239,70722.0,70708.0,0.00144]
[1773140607777,0.02540239,70721.0,70708.0,0.00144]